[Event "6th Cesme Open-A 2018"]
[Site "Cesme"]
[Date "2018.06.30"]
[Round "8.15"]
[White "Rzayev, Askar Aliakbar"]
[Black "Kamer, Kayra"]
[Result "0-1"]
[ECO "E73"]
[WhiteElo "2000"]
[BlackElo "2181"]
[Annotator "NA"]
[PlyCount "62"]
[EventDate "2018.06.26"]
[EventType "swiss"]
[EventCountry "TUR"]
[SourceTitle "playchess.com"]
[Source "ChessBase"]
[SourceQuality "1"]
[TimeControl "5400+30"]

1. d4 {[%emt 0:00:30]} Nf6 {[%emt 0:05:30]} 2. c4 {[%emt 0:00:30]} g6 {[%emt 0:00:30]} 3. Nc3 {[%emt 0:00:30]} Bg7 {[%emt 0:00:30]} 4. e4 {[%emt 0:00:30]} d6 {[%emt 0:00:00]} 5. Be2 {[%emt 0:00:00]} O-O {[%emt 0:00:00]} 6. Bg5 {[%emt 0:00:00]} Nbd7 {[%emt 0:01:30]} 7. Qd2 {[%emt 0:00:00]} e5 {[%emt 0:00:30]} 8. d5 {[%emt 0:00:00]} a5 {[%emt 0:00:30]} 9. h4 {[%emt 0:01:30]} Nc5 {[%emt 0:00:30]} 10. f3 {[%emt 0:00:30]} a4 {[%emt 0:02:30]} 11. h5 {[%emt 0:02:30]} c6 {[%emt 0:01:30]} 12. Nh3 {[%emt 0:15:30]} Bxh3 {[%emt 0:07:30]} 13. Rxh3 {[%emt 0:00:30]} Qa5 {[%emt 0:01:30]} 14. g4 {[%emt 0:09:30]} a3 {[%emt 0:01:30]} 15. b3 {[%emt 0:01:30]} cxd5 {[%emt 0:01:30]} 16. Nxd5 {[%emt 0:03:30]} Qxd2+ {[%emt 0:02:30]} 17. Bxd2 {[%emt 0:00:30]} Nxd5 {[%emt 0:01:30]} 18. cxd5 {[%emt 0:00:30]} f5 {[%emt 0:00:00]} 19. gxf5 {[%emt 0:04:30]} gxf5 {[%emt 0:00:00]} 20. b4 {[%emt 0:00:30]} Na4 {[%emt 0:02:30]} 21. h6 {[%emt 0:02:30]} Bf6 {[%emt 0:00:30]} 22. Rc1 {[%emt 0:01:30]} Rfc8 {[%emt 0:04:30]} 23. Rxc8+ {[%emt 0:21:30]} Rxc8 {[%emt 0:00:30]} 24. Bb5 {[%emt 0:00:30]} Nc3 {[%emt 0:00:30]} 25. Rg3+ {[%emt 0:00:30]} Kf8 {[%emt 0:00:30]} 26. Bd7 {[%emt 0:00:30]} Rc7 {[%emt 0:00:30]} 27. Bxf5 {[%emt 0:00:30]} Bh4 {[%emt 0:00:30]} 28. Bxc3 {[%emt 0:10:30]} Bxg3+ {[%emt 0:00:00]} 29. Kd2 {[%emt 0:00:30]} Be1+ {[%emt 0:00:00]} 30. Kxe1 {[%emt 0:00:30]} Rxc3 {[%emt 0:00:30]} 31. Bxh7 {[%emt 0:02:30]} Rc2 {[%emt 0:00:30]} 0-1

[Event "6th Cesme Open-A 2018"]
[Site "Cesme"]
[Date "2018.06.30"]
[Round "8.16"]
[White "Gulbeyaz, Emir"]
[Black "Ozkan, Ervin"]
[Result "1/2-1/2"]
[ECO "D13"]
[WhiteElo "2074"]
[BlackElo "2171"]
[Annotator "NA"]
[PlyCount "55"]
[EventDate "2018.06.26"]
[EventType "swiss"]
[EventCountry "TUR"]
[SourceTitle "playchess.com"]
[Source "ChessBase"]
[SourceQuality "1"]
[TimeControl "5400+30"]

1. d4 {[%emt 0:04:30]} Nf6 {[%emt 0:01:30]} 2. Nf3 {[%emt 0:02:30]} d5 {[%emt 0:00:30]} 3. c4 {[%emt 0:02:30]} c6 {[%emt 0:00:00]} 4. Nc3 {[%emt 0:00:00]} a6 {[%emt 0:00:00]} 5. cxd5 {[%emt 0:02:00]} cxd5 {[%emt 0:00:30]} 6. Bf4 {[%emt 0:00:30]} Nc6 {[%emt 0:00:00]} 7. e3 {[%emt 0:00:00]} Bf5 {[%emt 0:01:00]} 8. Bd3 {[%emt 0:00:00]} Bxd3 {[%emt 0:00:00]} 9. Qxd3 {[%emt 0:00:30]} e6 {[%emt 0:00:00]} 10. O-O {[%emt 0:00:30]} Bd6 {[%emt 0:00:30]} 11. Bg5 {[%emt 0:00:30]} O-O {[%emt 0:00:30]} 12. Rac1 {[%emt 0:00:30]} h6 {[%emt 0:00:30]} 13. Bh4 {[%emt 0:00:30]} Be7 {[%emt 0:00:30]} 14. Nd2 {[%emt 0:03:30]} Nd7 {[%emt 0:01:30]} 15. Bxe7 {[%emt 0:01:30]} Qxe7 {[%emt 0:00:30]} 16. Nb3 {[%emt 0:00:30]} Qb4 {[%emt 0:05:30]} 17. Qd1 {[%emt 0:04:30]} Na5 {[%emt 0:02:30]} 18. Nxa5 {[%emt 0:01:30]} Qxa5 {[%emt 0:00:00]} 19. Qa4 {[%emt 0:03:30]} Qxa4 {[%emt 0:00:00]} 20. Nxa4 {[%emt 0:00:00]} Rfc8 {[%emt 0:00:30]} 21. b3 {[%emt 0:04:00]} Kf8 {[%emt 0:00:30]} 22. f3 {[%emt 0:01:30]} Ke7 {[%emt 0:05:30]} 23. Kf2 {[%emt 0:00:30]} Kd6 {[%emt 0:04:30]} 24. Ke2 {[%emt 0:01:30]} f5 {[%emt 0:06:30]} 25. Kd2 {[%emt 0:00:30]} b6 {[%emt 0:00:30]} 26. Nb2 {[%emt 0:00:30]} a5 {[%emt 0:02:30]} 27. Rxc8 {[%emt 0:02:30]} Rxc8 {[%emt 0:00:00]} 28. Rc1 {[%emt 0:00:00]} 1/2-1/2

[Event "6th Cesme Open-A 2018"]
[Site "Cesme"]
[Date "2018.06.30"]
[Round "8.17"]
[White "Cansun, Can Alp"]
[Black "Gunduz, Umut Erdem"]
[Result "0-1"]
[ECO "C41"]
[WhiteElo "1918"]
[BlackElo "2130"]
[Annotator "NA"]
[PlyCount "84"]
[EventDate "2018.06.26"]
[EventType "swiss"]
[EventCountry "TUR"]
[SourceTitle "playchess.com"]
[Source "ChessBase"]
[SourceQuality "1"]
[TimeControl "5400+30"]

1. e4 {[%emt 0:00:30]} e5 {[%emt 0:14:30]} 2. Nf3 {[%emt 0:00:30]} d6 {[%emt 0:00:30]} 3. d4 {[%emt 0:00:00]} Nd7 {[%emt 0:00:30]} 4. Bc4 {[%emt 0:00:00]} c6 {[%emt 0:00:00]} 5. O-O {[%emt 0:06:30]} Be7 {[%emt 0:00:00]} 6. a4 {[%emt 0:01:30]} Ngf6 {[%emt 0:00:30]} 7. Nc3 {[%emt 0:00:00]} O-O {[%emt 0:00:30]} 8. a5 {[%emt 0:02:00]} Qc7 {[%emt 0:00:30]} 9. Re1 {[%emt 0:00:30]} exd4 {[%emt 0:04:30]} 10. Nxd4 {[%emt 0:00:00]} Ne5 {[%emt 0:00:30]} 11. Be2 {[%emt 0:02:00]} Re8 {[%emt 0:01:30]} 12. f4 {[%emt 0:02:30]} Ng6 {[%emt 0:00:30]} 13. Bf3 {[%emt 0:00:30]} Bd7 {[%emt 0:04:30]} 14. g3 {[%emt 0:01:30]} b5 {[%emt 0:02:30]} 15. axb6 {[%emt 0:04:30]} axb6 {[%emt 0:00:30]} 16. Rxa8 {[%emt 0:00:30]} Rxa8 {[%emt 0:00:00]} 17. h4 {[%emt 0:03:30]} h6 {[%emt 0:12:00]} 18. h5 {[%emt 0:00:30]} Nf8 {[%emt 0:00:30]} 19. Kg2 {[%emt 0:24:30]} Re8 {[%emt 0:09:30]} 20. g4 {[%emt 0:06:30]} Qc8 {[%emt 0:06:30]} 21. Nf5 {[%emt 0:17:30]} Bxf5 {[%emt 0:09:30]} 22. gxf5 {[%emt 0:02:30]} Rd8 {[%emt 0:00:00]} 23. Qe2 {[%emt 0:01:30]} Ne8 {[%emt 0:02:00]} 24. Kh2 {[%emt 0:05:43]} Nh7 {[%emt 0:15:10]} 25. Rg1 {[%emt 0:03:02]} Bf6 {[%emt 0:01:06]} 26. e5 {[%emt 0:08:38]} dxe5 {[%emt 0:00:01]} 27. fxe5 {[%emt 0:00:44]} Qc7 {[%emt 0:00:01]} 28. Bf4 {[%emt 0:00:23]} Bg5 {[%emt 0:00:01]} 29. Bxg5 {[%emt 0:00:09]} Nxg5 {[%emt 0:00:11]} 30. Bg2 {[%emt 0:00:43]} Nf6 {[%emt 0:00:45]} 31. Kh1 {[%emt 0:01:39]} Rd4 {[%emt 0:00:05]} 32. Rf1 {[%emt 0:02:40]} Rh4+ {[%emt 0:01:52]} 33. Kg1 {[%emt 0:00:06]} Nxh5 {[%emt 0:00:17]} 34. Qe3 {[%emt 0:00:05]} Rg4 {[%emt 0:05:19]} 35. Ne2 {[%emt 0:00:20]} Qd7 {[%emt 0:01:52]} 36. Qd3 {[%emt 0:01:25]} Qe7 {[%emt 0:00:52]} 37. Qd6 {[%emt 0:02:50]} Qa7 {[%emt 0:02:16]} 38. b4 {[%emt 0:00:30]} Qa3 {[%emt 0:01:31]} 39. Qd2 {[%emt 0:00:28]} Nf3+ {[%emt 0:01:13]} 40. Rxf3 {[%emt 0:00:30]} Qxf3 {[%emt 0:00:00]} 41. Nd4 {[%emt 0:00:00]} Qe4 {[%emt 0:00:19]} 42. c3 {[%emt 0:01:29]} Nf4 {[%emt 0:00:04]} 0-1

[Event "6th Cesme Open-A 2018"]
[Site "Cesme"]
[Date "2018.06.30"]
[Round "8.18"]
[White "Topel, Zehra"]
[Black "Pektas, Yigit"]
[Result "1-0"]
[ECO "A06"]
[WhiteElo "2145"]
[BlackElo "1975"]
[Annotator "NA"]
[PlyCount "43"]
[EventDate "2018.06.26"]
[EventType "swiss"]
[EventCountry "TUR"]
[SourceTitle "playchess.com"]
[Source "ChessBase"]
[SourceQuality "1"]
[TimeControl "5400+30"]

1. d4 {[%emt 0:03:30]} d5 {[%emt 0:00:30]} 2. Nf3 {[%emt 0:00:30]} Nf6 {[%emt 0:00:30]} 3. c4 {[%emt 0:00:30]} c6 {[%emt 0:00:00]} 4. e3 {[%emt 0:00:00]} e6 {[%emt 0:00:00]} 5. b3 {[%emt 0:00:00]} Nbd7 {[%emt 0:00:00]} 6. Bd3 {[%emt 0:00:30]} Bd6 {[%emt 0:01:00]} 7. Bb2 {[%emt 0:01:30]} O-O {[%emt 0:00:30]} 8. O-O {[%emt 0:00:30]} b6 {[%emt 0:00:00]} 9. Nbd2 {[%emt 0:02:30]} Bb7 {[%emt 0:00:00]} 10. Rc1 {[%emt 0:01:30]} Rc8 {[%emt 0:00:30]} 11. e4 {[%emt 0:01:30]} dxe4 {[%emt 0:00:30]} 12. Nxe4 {[%emt 0:00:00]} Nxe4 {[%emt 0:00:00]} 13. Bxe4 {[%emt 0:00:00]} Nf6 {[%emt 0:00:00]} 14. Bb1 {[%emt 0:00:30]} Bf4 {[%emt 0:01:30]} 15. Rc3 {[%emt 0:04:30]} c5 {[%emt 0:00:30]} 16. dxc5 {[%emt 0:01:30]} Rxc5 {[%emt 0:06:30]} 17. Ba3 {[%emt 0:02:30]} Rh5 {[%emt 0:00:30]} 18. g3 {[%emt 0:03:30]} Ng4 {[%emt 0:28:30]} 19. Bxf8 {[%emt 0:03:30]} Qf6 {[%emt 0:01:30]} 20. Bb4 {[%emt 0:05:30]} Ne5 {[%emt 0:11:30]} 21. Nxe5 {[%emt 0:03:30]} Rxh2 {[%emt 0:00:00]} 22. Nf3 {[%emt 0:01:30]} 1-0

[Event "6th Cesme Open-A 2018"]
[Site "Cesme"]
[Date "2018.06.30"]
[Round "8.19"]
[White "Molla, Ersen"]
[Black "Kucuk, Dogan"]
[Result "1/2-1/2"]
[ECO "A15"]
[WhiteElo "1932"]
[BlackElo "1974"]
[Annotator "NA"]
[PlyCount "76"]
[EventDate "2018.06.26"]
[EventType "swiss"]
[EventCountry "TUR"]
[SourceTitle "playchess.com"]
[Source "ChessBase"]
[SourceQuality "1"]
[TimeControl "5400+30"]

1. Nf3 {[%emt 0:01:30]} d6 {[%emt 0:00:30]} 2. b3 {[%emt 0:02:30]} Nf6 {[%emt 0:02:30]} 3. Bb2 {[%emt 0:00:30]} e5 {[%emt 0:00:30]} 4. c4 {[%emt 0:03:30]} Nc6 {[%emt 0:05:30]} 5. d3 {[%emt 0:02:30]} g6 {[%emt 0:01:30]} 6. g3 {[%emt 0:02:30]} Bg7 {[%emt 0:00:30]} 7. Bg2 {[%emt 0:00:30]} O-O {[%emt 0:00:30]} 8. O-O {[%emt 0:00:00]} h6 {[%emt 0:00:30]} 9. Nc3 {[%emt 0:03:00]} Be6 {[%emt 0:01:30]} 10. d4 {[%emt 0:06:30]} exd4 {[%emt 0:05:30]} 11. Nxd4 {[%emt 0:06:30]} Bd7 {[%emt 0:03:30]} 12. Rc1 {[%emt 0:06:30]} Re8 {[%emt 0:01:30]} 13. e3 {[%emt 0:07:30]} Bg4 {[%emt 0:06:30]} 14. Qd2 {[%emt 0:06:30]} Qd7 {[%emt 0:02:30]} 15. f3 {[%emt 0:08:30]} Bh3 {[%emt 0:04:30]} 16. Nd5 {[%emt 0:00:00]} Bxg2 {[%emt 0:07:30]} 17. Kxg2 {[%emt 0:02:00]} Nxd5 {[%emt 0:01:30]} 18. cxd5 {[%emt 0:06:30]} Ne7 {[%emt 0:03:30]} 19. e4 {[%emt 0:01:30]} Rac8 {[%emt 0:02:30]} 20. Rfd1 {[%emt 0:00:30]} c6 {[%emt 0:02:30]} 21. dxc6 {[%emt 0:02:30]} bxc6 {[%emt 0:01:30]} 22. Ne2 {[%emt 0:01:30]} Bxb2 {[%emt 0:00:30]} 23. Qxb2 {[%emt 0:00:00]} d5 {[%emt 0:00:30]} 24. Nf4 {[%emt 0:00:00]} Qb7 {[%emt 0:03:30]} 25. exd5 {[%emt 0:06:30]} Nxd5 {[%emt 0:00:30]} 26. Nxd5 {[%emt 0:00:30]} cxd5 {[%emt 0:00:30]} 27. Rxc8 {[%emt 0:00:30]} Rxc8 {[%emt 0:00:00]} 28. Rd2 {[%emt 0:01:30]} Qc6 {[%emt 0:00:00]} 29. Qd4 {[%emt 0:00:30]} a6 {[%emt 0:01:30]} 30. h4 {[%emt 0:00:30]} Qc1 {[%emt 0:01:30]} 31. Qxd5 {[%emt 0:06:12]} Rc2 {[%emt 0:00:30]} 32. Rxc2 {[%emt 0:00:30]} Qxc2+ {[%emt 0:00:30]} 33. Kh3 {[%emt 0:00:30]} Qxa2 {[%emt 0:00:00]} 34. Kg4 {[%emt 0:02:14]} Qc2 {[%emt 0:02:00]} 35. Kh3 {[%emt 0:04:40]} h5 {[%emt 0:04:30]} 36. Qd8+ {[%emt 0:00:33]} Kh7 {[%emt 0:00:30]} 37. Qd5 {[%emt 0:01:31]} Kg7 {[%emt 0:02:30]} 38. Qe5+ {[%emt 0:00:12]} Kh7 {[%emt 0:00:00]} 1/2-1/2

[Event "6th Cesme Open-A 2018"]
[Site "Cesme"]
[Date "2018.06.30"]
[Round "8.20"]
[White "Samani, Yamac"]
[Black "Kocak, Can"]
[Result "1-0"]
[ECO "A49"]
[WhiteElo "2227"]
[BlackElo "1892"]
[Annotator "NA"]
[PlyCount "69"]
[EventDate "2018.06.26"]
[EventType "swiss"]
[EventCountry "TUR"]
[SourceTitle "playchess.com"]
[Source "ChessBase"]
[SourceQuality "1"]
[TimeControl "5400+30"]

1. Nf3 {[%emt 0:00:30]} Nf6 {[%emt 0:00:30]} 2. g3 {[%emt 0:00:30]} g6 {[%emt 0:00:30]} 3. Bg2 {[%emt 0:00:30]} Bg7 {[%emt 0:00:00]} 4. O-O {[%emt 0:00:00]} O-O {[%emt 0:01:00]} 5. d4 {[%emt 0:00:00]} d6 {[%emt 0:00:00]} 6. a4 {[%emt 0:00:00]} Nbd7 {[%emt 0:01:00]} 7. a5 {[%emt 0:00:00]} c5 {[%emt 0:01:30]} 8. d5 {[%emt 0:02:30]} Rb8 {[%emt 0:01:30]} 9. c4 {[%emt 0:01:30]} b5 {[%emt 0:04:30]} 10. axb6 {[%emt 0:00:30]} Qxb6 {[%emt 0:00:30]} 11. Nc3 {[%emt 0:00:30]} a6 {[%emt 0:04:30]} 12. e4 {[%emt 0:08:30]} Qc7 {[%emt 0:06:30]} 13. Ra3 {[%emt 0:04:30]} Ng4 {[%emt 0:02:30]} 14. Qc2 {[%emt 0:00:30]} Nge5 {[%emt 0:01:30]} 15. Nd2 {[%emt 0:03:30]} f5 {[%emt 0:03:30]} 16. exf5 gxf5 {[%emt 0:00:30]} 17. Ne2 {[%emt 0:09:00]} Ng6 {[%emt 0:01:30]} 18. f4 {[%emt 0:07:30]} Nf6 {[%emt 0:02:30]} 19. Nf3 {[%emt 0:21:30]} Ne4 {[%emt 0:06:30]} 20. b3 {[%emt 0:02:30]} Qd7 {[%emt 0:05:30]} 21. Bb2 {[%emt 0:01:30]} Bb7 {[%emt 0:00:30]} 22. Bxg7 {[%emt 0:01:30]} Kxg7 {[%emt 0:00:00]} 23. Nc3 {[%emt 0:00:00]} Nxc3 {[%emt 0:05:00]} 24. Qxc3+ {[%emt 0:00:00]} Kg8 {[%emt 0:00:30]} 25. Ng5 {[%emt 0:00:30]} Rf6 {[%emt 0:00:30]} 26. Re1 {[%emt 0:01:30]} Nf8 {[%emt 0:02:30]} 27. Ra2 {[%emt 0:00:30]} h6 {[%emt 0:00:30]} 28. Rae2 {[%emt 0:01:30]} e5 {[%emt 0:09:30]} 29. fxe5 {[%emt 0:07:30]} dxe5 {[%emt 0:00:30]} 30. Qxe5 {[%emt 0:06:30]} Qd6 {[%emt 0:00:30]} 31. Qxd6 {[%emt 0:00:30]} Rxd6 {[%emt 0:00:00]} 32. Ne6 {[%emt 0:00:30]} Nxe6 {[%emt 0:02:00]} 33. Rxe6 {[%emt 0:00:30]} Rxe6 {[%emt 0:00:30]} 34. Rxe6 {[%emt 0:00:30]} Kg7 {[%emt 0:00:30]} 35. Rb6 {[%emt 0:00:00]} 1-0

[Event "6th Cesme Open-A 2018"]
[Site "Cesme"]
[Date "2018.07.01"]
[Round "9.4"]
[White "Sumets, Andrey"]
[Black "Rzayev, Bahruz Iqbal Oglu"]
[Result "1-0"]
[ECO "D40"]
[WhiteElo "2575"]
[BlackElo "2405"]
[Annotator "ChessBase"]
[PlyCount "75"]
[EventDate "2018.06.26"]
[EventType "swiss"]
[EventCountry "TUR"]
[SourceTitle "playchess.com"]
[Source "ChessBase"]
[SourceQuality "1"]
[TimeControl "5400+30"]

1. d4 {[%emt 0:00:30]} d5 {[%emt 0:04:30]} 2. c4 {[%emt 0:00:30]} e6 {[%emt 0:00:00]} 3. Nf3 {[%emt 0:00:00]} Nf6 {[%emt 0:00:00]} 4. Nc3 {[%emt 0:01:00]} c5 {[%emt 0:00:30]} 5. e3 {[%emt 0:02:30]} Nc6 {[%emt 0:00:30]} 6. a3 {[%emt 0:00:30]} a6 {[%emt 0:02:30]} 7. dxc5 {[%emt 0:00:30]} Bxc5 {[%emt 0:00:30]} 8. b4 {[%emt 0:00:00]} Bb6 {[%emt 0:03:30]} 9. Bb2 {[%emt 0:00:00]} O-O {[%emt 0:01:30]} 10. Qc2 {[%emt 0:08:30]} d4 {[%emt 0:14:30]} 11. Rd1 {[%emt 0:13:30]} e5 {[%emt 0:00:00]} 12. Be2 {[%emt 0:00:30]} Bd7 {[%emt 0:02:00]} 13. Nd5 {[%emt 0:09:30]} Nxd5 {[%emt 0:06:30]} 14. cxd5 {[%emt 0:00:00]} Ne7 {[%emt 0:00:30]} 15. exd4 {[%emt 0:05:00]} Rc8 {[%emt 0:01:30]} 16. Qb3 {[%emt 0:02:30]} e4 {[%emt 0:06:30]} 17. Ne5 {[%emt 0:00:30]} Bb5 {[%emt 0:00:30]} 18. Bg4 {[%emt 0:04:30]} Rc7 {[%emt 0:03:30]} 19. a4 {[%emt 0:02:30]} Be8 {[%emt 0:01:30]} 20. Be2 {[%emt 0:01:30]} Kh8 {[%emt 0:04:30]} 21. a5 {[%emt 0:01:30]} Ba7 {[%emt 0:04:30]} 22. b5 {[%emt 0:00:00]} Rc8 {[%emt 0:06:30]} 23. b6 {[%emt 0:07:00]} Bb8 {[%emt 0:00:00]} 24. Ba3 {[%emt 0:01:30]} f6 {[%emt 0:01:00]} 25. Qb4 {[%emt 0:02:30]} fxe5 {[%emt 0:03:30]} 26. Qxe7 {[%emt 0:01:30]} Rf7 {[%emt 0:00:30]} 27. Qxd8 {[%emt 0:00:30]} Rxd8 {[%emt 0:00:00]} 28. O-O {[%emt 0:01:30]} Ba4 {[%emt 0:02:00]} 29. Rd2 {[%emt 0:00:30]} Bb3 {[%emt 0:01:30]} 30. d6 {[%emt 0:04:30]} Bxd6 {[%emt 0:02:30]} 31. dxe5 {[%emt 0:00:30]} Be7 {[%emt 0:00:30]} 32. Rxd8+ {[%emt 0:00:30]} Bxd8 {[%emt 0:00:00]} 33. Rc1 {[%emt 0:00:30]} Be6 {[%emt 0:00:00]} 34. Bc4 {[%emt 0:02:30]} Bg5 {[%emt 0:00:30]} 35. Bxe6 {[%emt 0:08:30]} Bxc1 {[%emt 0:00:30]} 36. Bxc1 {[%emt 0:01:04]} Re7 {[%emt 0:00:30]} 37. Bc8 {[%emt 0:00:30]} Rxe5 {[%emt 0:00:00]} 38. Be3 {[%emt 0:00:00]} 1-0

[Event "6th Cesme Open-A 2018"]
[Site "Cesme"]
[Date "2018.07.01"]
[Round "9.5"]
[White "Gadimbayli, Abdulla Azar"]
[Black "Sanal, Vahap"]
[Result "0-1"]
[ECO "C92"]
[WhiteElo "2420"]
[BlackElo "2510"]
[Annotator "ChessBase"]
[PlyCount "60"]
[EventDate "2018.06.26"]
[EventType "swiss"]
[EventCountry "TUR"]
[SourceTitle "playchess.com"]
[Source "ChessBase"]
[SourceQuality "1"]
[TimeControl "5400+30"]

1. e4 {[%emt 0:00:30]} e5 {[%emt 0:08:30]} 2. Nf3 {[%emt 0:00:30]} Nc6 {[%emt 0:00:30]} 3. Bb5 {[%emt 0:00:00]} a6 {[%emt 0:00:00]} 4. Ba4 {[%emt 0:00:00]} Nf6 {[%emt 0:00:00]} 5. O-O {[%emt 0:00:30]} Be7 {[%emt 0:00:00]} 6. Re1 {[%emt 0:00:00]} b5 {[%emt 0:00:00]} 7. Bb3 {[%emt 0:00:00]} O-O {[%emt 0:00:30]} 8. c3 {[%emt 0:00:00]} d6 {[%emt 0:00:00]} 9. h3 {[%emt 0:00:00]} Bb7 {[%emt 0:01:00]} 10. d4 {[%emt 0:00:30]} Nd7 {[%emt 0:00:30]} 11. a4 {[%emt 0:02:30]} Na5 {[%emt 0:09:30]} 12. Bc2 {[%emt 0:01:30]} c5 {[%emt 0:00:00]} 13. d5 {[%emt 0:00:30]} c4 {[%emt 0:00:00]} 14. Be3 {[%emt 0:05:30]} Qc7 {[%emt 0:17:30]} 15. Na3 {[%emt 0:34:30]} bxa4 {[%emt 0:03:30]} 16. Nd2 {[%emt 0:04:30]} f5 {[%emt 0:08:30]} 17. exf5 {[%emt 0:07:30]} Nf6 {[%emt 0:10:30]} 18. Bxa4 {[%emt 0:03:30]} Kh8 {[%emt 0:06:30]} 19. b4 {[%emt 0:03:30]} cxb3 {[%emt 0:03:30]} 20. c4 {[%emt 0:01:30]} Nd7 {[%emt 0:04:30]} 21. Bxd7 {[%emt 0:05:30]} Qxd7 {[%emt 0:00:30]} 22. Nxb3 {[%emt 0:00:30]} Nxb3 {[%emt 0:03:30]} 23. Qxb3 {[%emt 0:00:30]} Bc8 {[%emt 0:00:30]} 24. c5 {[%emt 0:00:30]} dxc5 {[%emt 0:00:30]} 25. Red1 {[%emt 0:00:30]} Qxf5 {[%emt 0:00:30]} 26. Rac1 {[%emt 0:00:30]} Bd7 {[%emt 0:00:30]} 27. Qd3 {[%emt 0:00:30]} e4 {[%emt 0:00:30]} 28. Qe2 {[%emt 0:00:30]} Qg6 {[%emt 0:00:30]} 29. Kh1 {[%emt 0:14:18]} Rf3 {[%emt 0:10:10]} 30. h4 {[%emt 0:03:42]} Bg4 {[%emt 0:01:44]} 0-1

[Event "6th Cesme Open-A 2018"]
[Site "Cesme"]
[Date "2018.07.01"]
[Round "9.6"]
[White "Yilmazyerli, Mert"]
[Black "Zeynalli, Rashad Hamza"]
[Result "0-1"]
[ECO "A87"]
[WhiteElo "2491"]
[BlackElo "2295"]
[Annotator "ChessBase"]
[PlyCount "102"]
[EventDate "2018.06.26"]
[EventType "swiss"]
[EventCountry "TUR"]
[SourceTitle "playchess.com"]
[Source "ChessBase"]
[SourceQuality "1"]
[TimeControl "5400+30"]

1. Nf3 {[%emt 0:00:30]} f5 {[%emt 0:00:30]} 2. g3 {[%emt 0:00:30]} Nf6 {[%emt 0:00:30]} 3. Bg2 {[%emt 0:00:00]} g6 {[%emt 0:00:30]} 4. O-O {[%emt 0:00:00]} Bg7 {[%emt 0:00:30]} 5. d4 {[%emt 0:00:30]} O-O {[%emt 0:00:00]} 6. c4 {[%emt 0:00:00]} d6 {[%emt 0:00:00]} 7. Nc3 {[%emt 0:00:00]} Qe8 {[%emt 0:00:00]} 8. b3 {[%emt 0:00:30]} e5 {[%emt 0:02:00]} 9. dxe5 {[%emt 0:00:30]} dxe5 {[%emt 0:01:30]} 10. Ba3 {[%emt 0:00:30]} Rf7 {[%emt 0:01:30]} 11. e4 {[%emt 0:00:30]} Nc6 {[%emt 0:00:30]} 12. exf5 {[%emt 0:01:30]} Bxf5 {[%emt 0:02:30]} 13. Re1 {[%emt 0:03:30]} Rd8 {[%emt 0:03:30]} 14. Qc1 {[%emt 0:01:30]} Rfd7 {[%emt 0:04:30]} 15. Ng5 {[%emt 0:08:30]} Nd4 {[%emt 0:13:30]} 16. Nge4 {[%emt 0:02:30]} Nxe4 {[%emt 0:03:30]} 17. Nxe4 {[%emt 0:00:00]} Bg4 {[%emt 0:03:30]} 18. Qg5 {[%emt 0:34:00]} Bf3 {[%emt 0:03:30]} 19. Bb2 {[%emt 0:05:30]} Bxg2 {[%emt 0:03:30]} 20. Kxg2 {[%emt 0:00:30]} Nc2 {[%emt 0:03:30]} 21. Re2 {[%emt 0:04:30]} Nxa1 {[%emt 0:00:00]} 22. Bxa1 {[%emt 0:00:00]} Rf7 {[%emt 0:04:00]} 23. Qe3 {[%emt 0:04:00]} Qc6 {[%emt 0:04:30]} 24. Bc3 {[%emt 0:03:30]} b6 {[%emt 0:03:30]} 25. f3 {[%emt 0:05:30]} Rfd7 {[%emt 0:03:30]} 26. Qg5 {[%emt 0:02:30]} Re8 {[%emt 0:03:30]} 27. h4 {[%emt 0:03:37]} Rd3 {[%emt 0:03:30]} 28. Rd2 {[%emt 0:03:51]} Qd7 {[%emt 0:04:30]} 29. Rxd3 {[%emt 0:00:50]} Qxd3 {[%emt 0:01:30]} 30. Qd2 {[%emt 0:00:06]} Rd8 {[%emt 0:01:30]} 31. Kf2 {[%emt 0:00:28]} Qxd2+ {[%emt 0:02:30]} 32. Bxd2 {[%emt 0:00:05]} Bf8 {[%emt 0:02:30]} 33. Ke2 {[%emt 0:00:30]} a5 {[%emt 0:04:17]} 34. a4 {[%emt 0:02:00]} h6 {[%emt 0:04:21]} 35. Bc3 {[%emt 0:01:03]} Bg7 {[%emt 0:00:18]} 36. Bd2 {[%emt 0:00:46]} Kf7 {[%emt 0:00:20]} 37. Be3 {[%emt 0:00:00]} Bf8 {[%emt 0:02:25]} 38. Bd2 {[%emt 0:00:40]} Ke6 {[%emt 0:00:29]} 39. Be3 {[%emt 0:00:23]} Rb8 {[%emt 0:01:17]} 40. Kd3 {[%emt 0:00:44]} c6 {[%emt 0:01:07]} 41. Bd2 {[%emt 0:00:10]} h5 {[%emt 0:01:12]} 42. Ng5+ {[%emt 0:06:15]} Kf5 {[%emt 0:01:12]} 43. Ne4 {[%emt 0:00:04]} Bb4 {[%emt 0:00:54]} 44. Be3 {[%emt 0:03:05]} b5 {[%emt 0:01:15]} 45. Bc1 {[%emt 0:00:25]} bxa4 {[%emt 0:01:27]} 46. bxa4 {[%emt 0:00:04]} Ba3 {[%emt 0:01:28]} 47. Bd2 {[%emt 0:02:06]} Rb3+ {[%emt 0:00:14]} 48. Bc3 {[%emt 0:00:49]} Bb4 {[%emt 0:00:11]} 49. Kc2 {[%emt 0:00:17]} Rxc3+ {[%emt 0:00:08]} 50. Nxc3 {[%emt 0:00:20]} Bxc3 {[%emt 0:00:30]} 51. Kxc3 {[%emt 0:00:00]} e4 {[%emt 0:00:00]} 0-1